{"text_format":"1","workbook":"xlsx","n_sheets":8,"sheets":["Antrag","Anlage Selbsterklärung KMU","Anlage Wachstumsorientierung ","Anlage Kurzbeschreibung","Anlage De-minimis-Erklärung","Anlage Unt.Stammblatt","Anlage Anhang I AEUV","Informationen Datenerhebung"],"not_rendered":{"charts":0,"images":11,"macros":0,"external_links":0,"defined_names":8,"comments":0,"pivot_tables":0},"unopened":[],"bounds":{"document_bytes":16777216,"sheet_cells":100000,"rows_first":2000,"rows_last":500,"rows_between":2000,"halvings":0,"cell_chars":16384,"cell_head_chars":4096},"cells_cut":0,"cells_raw":0,"read":"whole","date_system":"1900"}

{"sheet":"Antrag","index":0,"n_rows":275,"n_cols":12,"rows_kept":275,"cut":false,"hidden":false,"merged":[[224,1,224,7],[225,1,225,8],[227,1,227,8],[222,1,222,8],[221,1,221,7],[194,2,194,8],[219,1,219,8],[218,1,218,7],[201,1,201,8],[202,1,202,8],[204,1,204,8],[206,1,206,8],[207,1,207,8],[209,1,209,8],[213,1,213,8],[197,1,197,8],[199,1,199,8],[216,1,216,8],[215,1,215,8],[211,1,211,8],[195,1,195,8],[19,1,19,2],[21,1,21,2],[22,1,22,2],[36,1,36,2],[37,1,37,2],[38,1,38,2],[39,1,39,2],[179,1,179,8],[181,1,181,8],[175,1,175,8],[177,1,177,8],[167,2,167,8],[163,1,163,8],[157,1,157,6],[157,7,157,8],[173,1,173,8],[158,1,158,6],[158,7,158,8],[168,2,168,8],[151,1,151,8],[145,1,145,4],[156,1,156,6],[153,7,153,8],[169,1,169,8],[184,2,184,8],[191,2,191,8],[185,2,185,8],[192,2,192,8],[193,2,193,8],[183,2,183,8],[189,2,189,8],[190,2,190,8],[188,2,188,8],[186,2,186,8],[187,2,187,8],[166,2,166,8],[161,1,161,8],[153,4,153,5],[160,1,160,4],[156,7,156,8],[165,1,165,8],[155,1,155,8],[153,1,153,2],[3,7,3,9],[3,0,3,2],[4,0,4,2],[20,1,20,2],[7,1,7,5],[31,1,31,2],[17,1,17,8],[9,1,9,8],[14,1,14,8],[8,7,8,8],[24,1,24,2],[18,1,18,2],[18,3,18,8],[22,3,22,8],[6,5,6,7],[31,3,31,8],[5,7,5,8],[4,7,4,8],[12,1,12,8],[10,1,10,8],[20,3,20,8],[21,3,21,8],[29,3,29,8],[25,3,25,8],[143,7,143,8],[117,3,117,9],[122,3,122,9],[113,3,113,8],[125,1,125,8],[106,2,106,8],[71,1,71,8],[43,3,43,8],[55,2,55,8],[120,1,120,8],[116,1,116,8],[114,3,114,8],[123,3,123,8],[118,3,118,8],[111,1,111,8],[105,2,105,7],[149,1,149,8],[144,1,144,8],[142,1,142,2],[126,1,126,7],[127,2,127,8],[132,2,132,9],[133,2,133,8],[129,2,129,8],[143,1,143,2],[131,1,131,8],[135,1,135,8],[137,2,137,8],[138,2,138,8],[139,2,139,8],[140,2,140,8],[110,1,110,8],[112,3,112,8],[100,2,100,8],[98,1,98,8],[85,1,85,8],[104,2,104,8],[97,1,97,8],[247,2,247,8],[231,1,231,3],[232,5,232,8],[230,5,231,8],[241,2,241,8],[245,2,245,8],[239,2,239,8],[235,2,235,7],[232,1,232,3],[237,2,237,8],[233,1,233,2],[233,3,233,8],[146,1,146,8],[152,1,152,2],[152,3,152,6],[152,7,152,8],[143,4,143,5],[35,1,35,8],[42,3,42,8],[46,1,46,9],[72,3,72,8],[79,1,79,8],[56,2,56,8],[41,3,41,8],[87,1,87,8],[94,3,94,8],[69,3,69,9],[76,1,76,8],[90,1,90,8],[83,3,83,8],[89,1,89,8],[43,1,43,2],[57,3,57,8],[54,2,54,8],[37,3,37,8],[33,1,33,5],[33,6,33,8],[15,1,15,8],[243,2,243,8],[108,2,108,8],[24,3,24,8],[27,1,27,8],[49,2,49,9],[63,1,63,8],[65,1,65,8],[67,3,67,8],[61,1,61,8],[47,2,47,8],[74,3,74,8],[38,3,38,8],[39,3,39,8],[50,3,50,8],[51,3,51,8],[58,3,58,8],[59,3,59,8],[36,3,36,8],[40,3,40,8],[96,1,96,8],[102,2,102,8]]}
[]
[]
[]
[]
[null,null,null,null,null,null,null,"Europäische Union"]
[]
[]
[null,"Landeskreditbank Baden-Württemberg (L-Bank)\nBereich Finanzhilfen\nSchlossplatz 10\n76113 Karlsruhe",null,null,null,null,null,"Stand: 7. Juli 2016"]
[]
[null,"Antrag \nauf Gewährung eines Zuschusses \nnach dem Förderprogramm Coaching \nfür kleine und mittlere Unternehmen\naus Mitteln des Europäischen Sozialfonds, Ziel Investition in Wachstum und Beschäftigung"]
[null,"Aktenzeichen des Ministeriums für Wirtschaft, Arbeit und Wohnungsbau:    4305.85/4"]
[]
[null,"für die Coachingschwerpunkte:\n- Innovationsvorhaben und Umstrukturierungen / Veränderungsprozesse\n- Klimafreundliche Geschäftstätigkeit\n- Unternehmensübergaben\n- Gelingende Ausbildung\n- Wachstumsorientierung frauengeführter Unternehmen"]
[]
[null,"Wichtige Informationen zum Verfahren: \nDie Anträge sind bei der L-Bank einzureichen. Die L-Bank entscheidet über die Bewilligung des Zuschusses. Die Bearbeitung der Anträge erfolgt in der Reihenfolge der vollständigen Eingänge bei der L-Bank. "]
[null,"F= interner Hinweis für die L-Bank (Feld der 113-Felder-Liste)"]
[]
["1.","Antragstellendes Unternehmen"]
["F","Name des Unternehmens"]
[null,"Sitz des Unternehmens:"]
["F","Straße, Hausnummer"]
["F","PLZ, Ort"]
[null,"Bundesland"]
[]
[null,"Rechtsform"]
[null,null,null,"(z.B. GmbH, KG, AG, Personengesellschaft etc.)"]
[]
[null,"Ist das Unternehmen im Handelsregister eingetragen?"]
[null,null,null,"Ja      (bitte den Handelsregister-Auszug beifügen)"]
[null,null,null,"Nein   (bitte Gewerbeanmeldung beifügen, falls vorhanden)"]
[]
["F","Wirtschaftszweig",null,"Bitte wählen Sie mithilfe des Dropdown die zutreffende Branche aus!"]
[]
[null,"Kunden-Nummer der L-Bank    (falls bereits vorhanden)"]
[]
["2.","Name der Ansprechperson im Unternehmen"]
["F","Name"]
["F","Vorname"]
[null,"Straße, Hausnummer"]
[null,"PLZ, Ort"]
["F","Telefon"]
["F","Telefax"]
["F","E-Mail"]
["F","Webseite (soweit vorhanden)"]
[]
[]
["3.","Ort der Durchführung der Maßnahme (Unternehmensstandort, wo der Coach zum Einsatz kommt)"]
[null,null,"Sitz des Unternehmens in Baden-Württemberg, wie unter Nr. 1 angegeben"]
[null,null,"anderer Betrieb des Unternehmens in Baden-Württemberg"]
[null,null,"Falls der Einsatz in einem anderen Betrieb des Unternehmens in Baden-Württemberg erfolgt, \nbitte Adresse angeben:"]
["F",null,"Straße, Hausnummer  "]
["F",null,"PLZ, Ort  "]
[]
["4.","Ort der Ablage der Belege"]
[null,null,"an der unter Nr. 1 angegebenen Adresse"]
[null,null,"an der unter Nr. 3 angegebenen Adresse"]
[null,null,"an anderer Stelle (bitte Adresse angeben)"]
[null,null,"Name"]
[null,null,"Straße, Hausnummer"]
[null,null,"PLZ, Ort"]
[]
["5.","Angaben zum Unternehmen "]
[]
["5.1.","Handelt es sich bei Ihrem Unternehmen um ein kleines und mittleres Unternehmen im Sinne der Empfehlung der Kommission vom 6. Mai 2003 betreffend die Definition der Kleinstunternehmen sowie der kleinen und mittleren Unternehmen (ABl. L 124 vom 20.05.2003, S. 36)?\n\n"]
[]
[null,"Bitte beantworten Sie zunächst die Fragen in der Anlage  \"Selbsterklärung zur Einstufung als KMU\" und kreuzen erst danach die folgende Ja-/Nein-Möglichkeit an."]
[]
[null,null,"Nein","Falls Sie \"Nein\" angekreuzt haben, benötigen wir keine weiteren Angaben."]
[]
[null,null,"Ja","Falls Sie \"Ja\" angekreuzt haben, fahren Sie bitte fort und legen Ihrem Antrag die unterschriebene Selbsterklärung bei."]
[]
["5.2.","Ist über das Vermögen Ihres Unternehmens ein Insolvenzverfahren beantragt oder eröffnet worden?"]
[null,null,"Ja","Falls Sie \"Ja\" angekreuzt haben, benötigen wir keine weiteren Angaben."]
[]
[null,null,"Nein","Falls Sie \"Nein\" angekreuzt haben, fahren Sie bitte fort.   "]
[]
["5.3.","Ist Ihr Unternehmen in der Fischerei oder in dem Aquakultursektor gemäß der Verordnung (EG) Nr. 104/20001) tätig?"]
[]
[null,"1) Link zur Regelung:"]
[null,"http://eur-lex.europa.eu/LexUriServ/LexUriServ.do?uri=OJ:L:2000:017:0022:0052:DE:PDF"]
[]
[null,null,"Ja","Falls Sie \"Ja\" angekreuzt haben, benötigen wir keine weiteren Angaben."]
[]
[null,null,"Nein                                ","Falls Sie \"Nein\" angekreuzt haben, fahren Sie bitte fort.  "]
[]
["5.4.","Ist Ihr Unternehmen in der Primärerzeugung landwirtschaftlicher Erzeugnisse2) tätig? (siehe Anhang I des Vertrags über die Arbeitsweise der Europäischen Union3) (AEUV)) "]
[]
[null,"2) Hinweis:\nDefinition \"landwirtschaftliche Erzeugnisse\" (VO (EU) Nr. 1407/2013 vom 18.12.2013): \ndie in Anhang I des AEUV aufgeführten Erzeugnisse mit Ausnahme der Fischerei- und Aquakulturerzeugnisse, die unter die Verordnung (EG) Nr. 104/2000 fallen."]
[]
[null,"3) Anhang I des AEUV mit Stand vom 26.12.2012 finden Sie im letzten Tabellenblatt dieses Dokuments bzw.\nLink zur Regelung:"]
[null,"http://eur-lex.europa.eu/legal-content/DE/TXT/PDF/?uri=CELEX:12012E/TXT&from=DE"]
[]
[null,null,"Ja","Falls Sie \"Ja\" angekreuzt haben, benötigen wir keine weiteren Angaben."]
[]
[null,null,"Nein                                ","Falls Sie \"Nein\" angekreuzt haben, fahren Sie bitte mit Nr. 10.3. fort.  "]
[]
["6.","Thematischer Schwerpunkt des Coachings"]
[null,"Achtung! Pro Antrag darf nur ein Themenbereich ausgewählt werden!"]
[null,"Wir beantragen die Förderung eines Coachings im Zusammenhang mit…"]
[]
[null,null,"Innovationsvorhaben und Umstrukturierungen / Veränderungsprozesse \nEin Coaching kann sich insbesondere erstrecken auf:\n• die Erschließung innovativer Produkte, Dienstleistungen bzw. Prozesse sowie den Aufbau eines betrieblichen Innovationsmanagements, d.h. die systematische Generierung neuer Ideen bis hin zur Koordination der Umsetzung in neue Produkte, Dienstleistungen oder Verfahren;\n• den Ausbau einer wettbewerbsfähigen Marktpositionierung zur Erschließung von Marktchancen und zur Ausweitung oder Spezialisierung der Geschäftstätigkeit. Möglich ist z.B. auch eine Ausrichtung des Produkt- und Dienstleistungsangebots im Hinblick auf älter werdende Kundschaften;\n• eine organisatorische Neuausrichtung zur Erschließung von Produktivitätsreserven sowie zur Begleitung von betrieblichen Wachstumsprozessen unter Einbeziehung der Interessen der Mitarbeiterschaft;\n• die Neuausrichtung oder Ergänzung der Finanzierungsstruktur des Unternehmens bspw. durch die Einrichtung eines Mitarbeiterbeteiligungsmodells."]
[]
[null,null,"Klimafreundliche Geschäftstätigkeit\nEin Coaching kann sich insbesondere erstrecken auf die Erschließung von Marktchancen, die Ausweitung oder Spezialisierung der Geschäftstätigkeit durch die Generierung neuer Ideen bis hin zur Koordination der Umsetzung in Produkte, Verfahren oder Dienstleistungen im Hinblick auf\n• Elektromobilität einschließlich der zugehörigen Wartungs- und Versogungsinfrastruktur;\n• Erneuerbare Energien und / oder Energieeffizienz;\n• Leichtbau und / oder Ressourcen- und Materialeffizienz. "]
[]
[null,null,"Unternehmensübergaben\nEin Übergabecoaching kann sich insbesondere erstrecken auf die Planung des Übergabeprozesses (z.B. Analyse der Ausgangssituation, Erörterung der Übergabealternativen, Grobbewertung des Unternehmens, Entwicklung eines konkreten Übergabekonzepts) bis hin zur Begleitung der Umsetzung."]
[]
[null,null,"Gelingende Ausbildung\nEin Coaching kann sich insbesondere erstrecken auf: \n• eine betriebsspezifische Ausbildungskonzeption mit Fokus auf inländische Nachwuchskräfte. Umfasst sind auch die Planung dauerhafter Ausbildungsstrukturen und konkreter Ausbildungsabläufe;\n• die individuelle Unterstützung eines gelingenden Ausbildungsverhältnisses, also bspw. eine Vermittlung in ausbildungsbegleitende Hilfen (abH) oder konkrete Unterstützungsangebote für Auszubildende und Ausbilder/innen in schwierigen Ausbildungssituationen. "]
[]
[null,null,"Wachstumsorientierung frauengeführter Unternehmen\nEin Coaching kann sich insbesondere erstrecken auf: \n• den Aufbau neuer und den Ausbau bestehender Geschäftsfelder;\n• die Erschließung neuer geografischer Märkte einschließlich Internationalisierung;\n• die Erschließung neuer Zielgruppen;\n• Kooperationen (z.B. Vertrieb, Beschaffung), strategische Allianzen, Netzwerke;\n• Franchising oder ähnliche Modelle sowie\n• Wachstumsfinanzierung.\n\nWenn Sie ein Coaching zum Themenschwerpunkt \"Wachstumsorientierung frauengeführter Unternehmen\" beantragen, füllen Sie bitte die Anlage \"Wachstumsorientierung frauengeführter Unternehmen\" aus, damit Ihr Antrag bearbeitet werden kann."]
[]
["7.","Angaben zum Beratungsunternehmen\n\nEs wird empfohlen, bei der Auswahl des Beratungsunternehmens dessen Genderkompetenz zu berücksichtigen und auf die gendersensible und gleichstellungsorientierte Gestaltung des Coachingkonzeptes zu achten.\n"]
["7.1.","Das Coaching wird von folgendem Beratungsunternehmen durchgeführt:\n(Als Beratungsunternehmen gelten freiberufliche Unternehmensberater/innen oder Unternehmensberatungsgesellschaften.)"]
[null,"Name"]
[null,"Straße, Hausnummer"]
[null,"PLZ, Ort"]
[]
["7.2.","Ist der/die Inhaber/in, der/die Anteilseigner/in oder sind Beschäftigte des Beratungsunternehmens an dem zu coachenden Unternehmen finanziell beteiligt?"]
[null,null,"Ja","Falls Sie \"Ja\" angekreuzt haben, benötigen wir keine weiteren Angaben."]
[null,null,"Nein","Falls Sie \"Nein\" angekreuzt haben, fahren Sie bitte fort."]
[]
["7.3.","Ist der der Coach mit der gecoachten Person oder einer der gecoachten Personen verheiratet, steht er mit der gecoachten Person oder einer der gecoachten Personen in einem Verwandtschaftsverhältnis ersten oder zweiten Grades oder besteht mit der gecoachten Person oder einer der gecoachten Personen eine eingetragene Lebenspartnerschaft?"]
[]
[null,null,"Ja","Falls Sie \"Ja\" angekreuzt haben, benötigen wir keine weiteren Angaben."]
[null,null,"Nein","Falls Sie \"Nein\" angekreuzt haben, fahren Sie bitte fort."]
[]
["7.4.","Wird das Coaching von einem Beratungsunternehmen durchgeführt, dessen Qualitätsmanagementsystem von einer der folgenden Stellen bescheinigt wurde? \nBitte kreuzen Sie entsprechend an."]
[null,"Das Qualitätsmanagementsystem wird bescheinigt:"]
[null,null,"von einer Konformitätsbewertungsstelle, die durch die nationale Akkreditierungsstelle (DAkkS - Deutsche Akkreditierungsstelle) im Sinne der Verordnung (EG) Nr. 765/2008 akkreditiert wurde oder"]
[]
[null,null,"von einer Konformitätsbewertungsstelle, deren Qualitätsmanagementzertifikate aufgrund gegenseitiger Anerkennungsvereinbarungen (multilaterale Abkommen - MLA/MRA) folgender Organisationen auch von der nationalen Akkreditierungsstelle anerkannt werden: \n   • European co-operation for Accreditation (EA)\n   • International Accreditation Forum (IAF)\n   • International Laboratory Accreditation Cooperation (ILAC) "]
[]
["7.5.","Wie weisen Sie die Zertifizierung nach?"]
[null,null,"Das Beratungsunternehmen ist auf der Webseite www.esf-bw.de gelistet. "]
[null,null,"Dem Antrag liegt die oben angegebene Zertifizierung bei."]
[]
["7.6.","Wer coacht voraussichtlich?"]
[]
[null,null,"Nachname, Vorname"]
[null,"1."]
[null,2]
[null,"3."]
[]
["8.","Durchführungszeitraum"]
[null,"Zeitraum, in dem das Coaching stattfinden soll:",null,"vom ",null,null,"bis  "]
[null,"Das Coaching soll grundsätzlich innerhalb eines Jahres abgeschlossen sein."]
["9.","Kurzbeschreibung des geplanten Coachings"]
[null,"Bitte beschreiben Sie kurz das geplante Coaching unter Verwendung der Anlage \"Kurzbeschreibung\"."]
[]
["10.","Ausgaben und Finanzierung"]
[null,"Pro Coaching werden bis zu 15 Personentage (PT) mit einem Zuschuss von je 300 Euro pro PT für Coachingleistungen gefördert. Der maximale Zuschuss je thematischem Schwerpunkt liegt bei 4.500 Euro (15 PT à 300 Euro). Fallen höhere Coachingausgaben als 600 Euro pro Personentag mit 8 Zeitstunden (Standardeinheitskosten) an, sind diese nicht Gegenstand der Förderung und in vollem Umfang vom Zuwendungsempfänger zu tragen."]
[]
["10.1.","Zuschuss"]
[null,"beantragte Anzahl \nder Personentage \n(max. 15 )",null,"Zuschuss pro Personentag\nmit 8 Zeitstunden\n"]
[null,null,null,"x",300,null,"=",{"$f":"B154*E154","v":0}]
[]
["10.2.","Finanzierung (Festbetragsfinanzierung)"]
[null,"Zuschuss aus Mitteln des Europäischen Sozialfonds\n(300 Euro pro Personentag)",null,null,null,null,null,{"$f":"IF(B154>0,H154,\"\")","v":""}]
[null,"Finanzierung aus Eigenmitteln (300 Euro pro Personentag)",null,null,null,null,null,{"$f":"IF(H154>0,B154*300,\"\")","v":""}]
[null,"Förderfähige Ausgaben",null,null,null,null,null,{"$f":"IF(B154>0,H157+H158,\"\")","v":""}]
[]
["11.","De-minimis-Beihilfen"]
[null,"Die Einhaltung der beihilferechtlichen Vorschriften wird über eine De-minimis-Erklärung überprüft. \nBitte füllen Sie hierfür die Anlage \"De-minimis-Erklärung\" aus."]
[]
["12.","Hinweis auf die Bestimmungen des Subventionsgesetzes"]
[]
[null,"Unrichtige oder unvollständige Angaben zu subventionserheblichen Tatsachen können nach § 264 Strafgesetzbuch (Subventionsbetrug) strafbar sein, sofern die Angaben für den Antragsteller oder einen anderen vorteilhaft sind. Gleiches gilt, wenn die L-Bank über subventionserhebliche Tatsachen in Unkenntnis gelassen worden ist.\n\nSubventionserheblich sind:"]
[null,">","Angaben zum Vorhaben (insbesondere Angaben zum Antragsteller und dessen Unternehmen, Angaben zu den beantragten Coachings, Angaben über weitere Förderungen) sowie allen weiteren Tatsachen von denen nach Verwaltungsverfahrensrecht oder anderen Rechtsvorschriften die Erstattung der Zuwendung abhängig ist."]
[null,">","Mitteilungs- und Nachweispflichten nach Nr. 4 und Nr. 6 der Nebenbestimmungen für Zuwendungen zur Projektförderung (NBest-P-ESF-BW) vom 09.09.2014"]
[null,">","Angaben zu bisherigen gewährten De-minimis-Beihilfen und den derzeit laufenden Anträgen auf \nDe-minimis-Beihilfen (siehe Anlage \"De-minimis-Erklärung\")."]
[null,"Jede Änderung der vorstehenden Angaben ist der L-Bank, Schlossplatz 10, 76113 Karlsruhe, unverzüglich mitzuteilen.\n\nRechtsgrundlagen: \n–  § 264 Strafgesetzbuch \n–  §§ 2 Abs. 1, 3 und 4 Subventionsgesetz vom 29.07.1976 (Bundesgesetzblatt 1976 Teil 1 S. 2037) in Verbindung mit § 1 des Gesetzes über die Vergabe von Subventionen nach Landesrecht vom 01.03.1977 (GBl. für Baden-Württemberg S. 42)."]
[]
["13.","Wir bestätigen, dass…"]
[]
["►","wir von dem Merkblatt zum Förderprogramm Kenntnis genommen haben und die Bestimmungen beachten werden."]
[]
["►","wir damit einverstanden sind, dass die für Verwaltungs- Monitoring- und Evaluierungs- sowie Prüfzwecke notwendigen Daten edv-technisch erfasst und verarbeitet werden."]
[]
["►","uns bekannt ist, dass das Coaching grundsätzlich erst nach Vorliegen einer schriftlichen Förderzusage durch die L-Bank erfolgen darf."]
[]
[null,"Nicht förderfähige Beratungsinhalte"]
[]
["►","über das beantragte Coaching hinausgehende Leistungen, wie zum Beispiel: "]
[]
[null,">","Beratungen, die sich überwiegend auf Rechts-, Versicherungs-, Patent- und Steuerfragen oder \nauf die Erlangung öffentlicher Hilfen beziehen"]
[null,">","Beratungen, die überwiegend im Zusammenhang mit der Entwicklung und Gestaltung von Geschäftsausstattung und Werbematerial stehen wie Logos, Briefpapier, Visitenkarten, Flyer, Broschüren, Plakate, Mailings etc."]
[null,">","Beratungen, die überwiegend im Zusammenhang mit der Erarbeitung von Internetseiten bzw. eines Internetauftritts stehen"]
[null,">","Beratungen, die überwiegend im Zusammenhang mit der Beschaffung, Erstellung und Einführung von IKT stehen"]
[null,">","Beratungen, die überwiegend der Erstellung von gutachterlichen Stellungnahmen einschließlich Liquiditäts- und Bonitätsgutachten dienen"]
[null,">","Beratungen, die überwiegend Architekten- und Ingenieurleistungen zum Gegenstand haben; Aufstellung baureifer Pläne"]
[null,">","Erstellung von Qualitäts-Management-Handbüchern"]
[null,">","Qualitätsprüfung sowie technische, chemische oder ähnliche Untersuchungen"]
[null,">","Durchführung von Ausschreibungsverfahren; Ausarbeitung von Verträgen"]
[null,">","Aufstellung von Jahresabschlüssen, Buchführungs- und Bilanzierungsarbeiten"]
[null,">","Beratungen, die Akquisitions- und Vermittlungstätigkeiten auf Provisionsbasis beinhalten und/oder deren Zweck auf den Erwerb von Waren, Dienstleistungen und Finanzierungen ausgerichtet sind, die von der Unternehmensberatungsgesellschaft oder der Beraterin / dem Berater selbst vertrieben werden (Neutralität)"]
[null,">","Beratungen, die durch Angehörige in einem Verwandtschaftsverhältnis ersten oder zweiten Grades oder eine Ehepartnerin / einen Ehepartner bzw. eine/n eingetragene/n Lebenspartner/in durchgeführt werden"]
[null,"im Rahmen der Förderung nicht in Anspruch genommen werden."]
[]
[null,"Mehrfachförderung"]
[]
["►","uns bekannt ist, dass eine weitere Förderung der bezuschussten Coachingausgaben aus Mitteln der Europäischen Union ausgeschlossen ist. Wir haben eine weitere Förderung weder bekommen noch beantragt und werden diese auch nicht beantragen."]
[]
[null,"Mitwirkungspflichten, Berichtspflichten, Finanzkontrolle"]
["►","uns bekannt ist, dass wir im Falle einer Zuschussgewährung verpflichtet sind, auch nach dem Ende des Coachings an Monitoring- und Evaluationsmaßnahmen teilzunehmen. Hierfür wird die Mail-Adresse einer kundigen Ansprechperson, die am Coaching teilgenommen hat, zur Verfügung gestellt.\n"]
[]
["►","uns bekannt ist, dass wir verpflichtet sind, die Finanzkontrolle durch das Land, den Bund und die Europäische Union sowie deren Beauftragte zu unterstützen und die erforderlichen Auskünfte zu erteilen."]
[]
[null,"Publizitätspflichten"]
["►","wir im Falle einer Zuschussgewährung einverstanden sind, dass u.a. der Name des Zuwendungsempfängers und Postleitzahl, die Bezeichnung des Vorhabens (Coaching einschl. Kurzbeschreibung), der Durchführungszeitraum und die förderfähigen Ausgaben in einer \"Liste der Vorhaben\" aufgenommen und veröffentlicht werden."]
[]
["►","uns bekannt ist, dass wir verpflichtet sind, alle am Coaching Beteiligten, einschließlich Coach, über die Förderung aus Mitteln des Europäischen Sozialfonds zu informieren."]
[]
["►","uns die Empfehlung bekannt ist, dass wir, sofern wir eine Webseite betreiben, dort während der Laufzeit des Coachings eine kurze Beschreibung mit Hinweis auf die finanzielle Unterstützung durch die EU einstellen."]
[]
["►","uns des Weiteren die Empfehlung bekannt ist, während des Coachings gut sichtbar ein Plakat bspw. im Eingangsbereich des Unternehmens aufzuhängen."]
[]
[null,"Aufbewahrungspflicht"]
["►","uns bekannt ist, dass alle Belege, Verträge und sonstige mit dem Zuschuss zusammenhängenden Unterlagen mindestens bis 31.12.2031 aufbewahrt werden müssen. Uns ist zudem bekannt, dass wir sie jederzeit vollständig zu Prüfungen bereitstellen können müssen und jede Änderung des Aufbewahrungsortes der L-Bank mitzuteilen haben. \nDiese Pflicht bleibt bei Betriebsänderungen unverändert bestehen (z.B. Einschränkung, Stilllegung, Verlegung des ganzen Betriebs oder wesentlicher Betriebsteile). Die Unterlagen müssen bei Betriebsänderungen ebenfalls bis 31.12.2031 aufbewahrt werden und jederzeit vollständig zur Prüfung bereitgestellt werden können. Jede Änderung des Aufbewahrungsortes ist auch bei Betriebsänderungen der L-Bank mitzuteilen. \nFalls sich die Aufbewahrungsfrist ändert, erfolgt eine entsprechende Information."]
[]
[null,"Beihilferechtliche Voraussetzungen"]
["►","wir die beihilferechtlichen Vorschriften und die in der Verordnung (EU) Nr. 1407/2013 der Kommission vom 18.Dezember 2013 über die Anwendung der Artikel 107 und 108 des AEUV auf \"De-minimis\"-Beihilfen (ABl. L 352, S. 1) genannten Voraussetzungen einhalten werden. \nDie ausgefüllte De-minimis-Erklärung liegt dem Antrag bei."]
[]
[null,"Bestimmungen des Subventionsgesetzes"]
["►","uns bekannt ist, dass unrichtige und unvollständige Angaben zu subventionserheblichen Tatsachen nach § 264 Strafgesetzbuch (StGB) strafbar sein können, sofern die Angaben für den Antragsteller oder einen anderen vorteilhaft sind. Gleiches gilt, wenn die L-Bank über subventionserhebliche Tatsachen in Unkenntnis gelassen worden ist. "]
[]
[null,"Angaben im Unternehmensstammblatt"]
["►","wir die \"Informationen für Unternehmen zur Datenerhebung\" zur Kenntnis genommen haben (im Antrag Coaching unter Tabellenblatt \"informationen Datenerhebung\" oder über http://www.esf-bw.de) und mit der dort erläuterten Erfassung, Verarbeitung und Weiterleitung der Kontakt- und Unternehmensdaten einverstanden sind."]
[]
[null,"Wir versichern, dass unsere Angaben im Antrag einschließlich aller Anlagen vollständig und richtig sind."]
[]
[]
[]
[]
[null,"Ort und Datum",null,null,null,"Rechtsverbindliche Unterschrift des Antragstellers"]
[null,"Anlagen:"]
[]
[null,null,"Handelsregisterauszug oder Gewerbeanmeldung"]
[]
[null,null,"Zertifizierung des Beratungsunternehmens (falls nicht unter www.esf-bw.de gelistet)"]
[]
[null,null,"Anlage Selbsterklärung zur Einstufung als KMU"]
[]
[null,null,"sofern zutreffend: Anlage zum Coachingschwerpunkt \"Wachstumsorientierung frauengeführter Unternehmen\""]
[]
[null,null,"Anlage Kurzbeschreibung des geplanten Coachings "]
[]
[null,null,"Anlage De-minimis-Erklärung des Antragstellers"]
[]
[null,null,"Anlage Angaben für das Unternehmenstammblatt"]
[]
[]
[null,null,null,null,null,null,null,null,null,null,null,"01 Land- und Forstwirtschaft"]
[null,null,null,null,null,null,null,null,null,null,null,"02 Fischerei und Aquakultur"]
[null,null,null,null,null,null,null,null,null,null,null,"03 Herstellung von Nahrungs- und Futtermitteln, Getränkeherstellung"]
[null,null,null,null,null,null,null,null,null,null,null,"04 Herstellung von Textilien und Bekleidung"]
[null,null,null,null,null,null,null,null,null,null,null,"05 Fahrzeugbau"]
[null,null,null,null,null,null,null,null,null,null,null,"06 Herstellung von Datenverarbeitungsgeräten, elektronischen und optischen Erzeugnissen"]
[null,null,null,null,null,null,null,null,null,null,null,"07 Sonstiges nicht spezifiziertes verarbeitendes Gewerbe"]
[null,null,null,null,null,null,null,null,null,null,null,"08 Baugewerbe/Bau"]
[null,null,null,null,null,null,null,null,null,null,null,"09 Bergbau und Gewinnung von Steinen und Erden (einschließlich zwecks Energieerzeugung betriebener Bergbau)"]
[null,null,null,null,null,null,null,null,null,null,null,"10 Energieversorgung"]
[null,null,null,null,null,null,null,null,null,null,null,"11 Wasserversorgung, Abwasser- und Abfallentsorgung und Beseitigung von Umweltverschmutzungen"]
[null,null,null,null,null,null,null,null,null,null,null,"12 Verkehr und Lagerei"]
[null,null,null,null,null,null,null,null,null,null,null,"13 Informations- und Kommunikation, einschließlich Telekommunikation, Informationsdienstleistungen, Erbringung von Dienstleistungen der Informationstechnologie"]
[null,null,null,null,null,null,null,null,null,null,null,"14 Handel"]
[null,null,null,null,null,null,null,null,null,null,null,"15 Gastgewerbe/Beherbergung und Gastronomie"]
[null,null,null,null,null,null,null,null,null,null,null,"16 Erbringung von Finanz- und Versicherungsdienstleistungen"]
[null,null,null,null,null,null,null,null,null,null,null,"17 Grundstücks- und Wohnungswesen, Vermietung und wirtschaftliche Tätigkeiten"]
[null,null,null,null,null,null,null,null,null,null,null,"18 Öffentliche Verwaltung"]
[null,null,null,null,null,null,null,null,null,null,null,"19 Erziehung und Unterricht"]
[null,null,null,null,null,null,null,null,null,null,null,"20 Gesundheits- und Sozialwesen"]
[null,null,null,null,null,null,null,null,null,null,null,"21 Sozialwesen, öffentliche und persönliche Dienstleistungen"]
[null,null,null,null,null,null,null,null,null,null,null,"22 Dienstleistungen im Zusammenhang mit Umwelt und Klimawandel"]
[null,null,null,null,null,null,null,null,null,null,null,"23 Kunst, Unterhaltung, Kreativwirtschaft und Erholung"]
[null,null,null,null,null,null,null,null,null,null,null,"24 Sonstige nicht spezifizierte Dienstleistungen"]
[null,null,null,null,null,null,null,null,null,null,null,"Bitte wählen Sie mithilfe des Dropdown die zutreffende Branche aus!"]

{"sheet":"Anlage Selbsterklärung KMU","index":1,"n_rows":38,"n_cols":7,"rows_kept":38,"cut":false,"hidden":false,"merged":[[7,4,7,7],[5,1,5,6],[10,1,10,7],[14,2,14,7],[1,1,1,7],[2,1,2,7],[3,1,3,7],[6,1,6,3],[6,4,6,7],[7,1,7,3],[8,1,8,3],[8,4,8,7],[17,2,17,7],[36,1,36,3],[36,5,36,7],[32,1,32,3],[32,4,32,5],[32,6,32,7],[20,2,20,7],[22,1,22,7],[25,2,25,7],[29,1,29,7],[31,1,31,3],[31,4,31,5],[31,6,31,7]]}
[]
[null,"Selbsterklärung zur Einstufung als KMU"]
[null,"gemäß Empfehlung der Kommission vom 6. Mai 2003 betreffend die Definition der Kleinstunternehmen sowie der kleinen und mittleren Unternehmen (2003/361/EG), veröffentlicht ABl. L 124/36 vom 20.05.2003 "]
[null,"Weitere Erläuterungen und Hilfestellungen, insbesondere zur Berechnung, des Jahresumsatzes und der Bilanzsumme, finden Sie im KMU-Benutzerhandbuch der Europäischen Kommission unter www.esf-bw.de."]
[]
["1.","Antragstellendes Unternehmen"]
[null,"Name des Unternehmens",null,null,{"$f":"IF(Antrag!D19=\"\",\"\",Antrag!D19)","v":""}]
[null,"Straße, Hausnummer",null,null,{"$f":"IF(Antrag!D21=\"\",\"\",Antrag!D21)","v":""}]
[null,"PLZ, Ort",null,null,{"$f":"IF(Antrag!D22=\"\",\"\",Antrag!D22)","v":""}]
[]
["2.","Unternehmenstyp - bitte zutreffendes ankreuzen."]
[]
[]
[null,null,"Verbundenes Unternehmen"]
[null,"\n-\n-\n\n-\n\n-","Unternehmen sind miteinander verbunden, wenn sie in einer der folgenden Beziehungen stehen:\nEin Unternehmen hält die Mehrheit der Stimmrechte der Aktionäre oder Gesellschafter eines anderen Unternehmens;\nein Unternehmen ist berechtigt, die Mehrheit der Mitglieder des Verwaltungs-, Leitungs- oder Aufsichtsgremiums eines anderen Unternehmens zu bestellen oder abzuberufen;\nein Unternehmen kann aufgrund eines zwischen den Unternehmen geschlossenen Vertrags oder aufgrund einer Klausel in der Satzung eines der Unternehmen einen beherrschenden Einfluss auf das andere Unternehmen ausüben;\nein Unternehmen das Aktionär oder Gesellschafter eines anderen Unternehmens ist, kann kraft einer Vereinbarung die alleinige Kontrolle über die Mehrheit der Stimmrechte der Aktionäre oder Gesellschafter in einem anderen Unternehmen ausüben."]
[]
[null,null,"Partnerunternehmen"]
[null,"\n\n-\n-","Unternehmen sind Partnerunternehmen, wenn diese nicht miteinander verbunden sind und zwischen denen zumindest eine der folgenden Beziehungen besteht:\nSie halten mindestens 25 % des Kapitals oder mindestens 25 % der Stimmrechte an einem anderen Unternehmen;\nein anderes Unternehmen hält mindestens 25 % des Kapitals oder mindestens 25 % der Stimmrechte an Ihrem Unternehmen. \n"]
[]
[null,null,"Eigenständiges Unternehmen"]
[null,"\n-\n\n-\n","Unternehmen sind eigenständig, wenn sie weder Partnerunternehmen, noch verbundene Unternehmen sind:\nSie sind völlig unabhängig, d.h., Sie sind nicht an anderen Unternehmen beteiligt, und es gibt keine Beteiligung anderer Unternehmen an Ihrem Unternehmen oder\nSie halten weniger als 25 % des Kapitals und weniger als 25 % der Stimmrechte an einem oder mehreren anderen Unternehmen und/oder Außenstehende halten weniger als 25% des Kapitals und weniger als 25 % der Stimmrechte an Ihrem Unternehmen.\n"]
[]
["3.","Beteiligung öffentlicher Stellen  - bitte ankreuzen falls zutreffend."]
[]
[null,null,"Kein KMU wegen zu hoher öffentlicher Beteiligung"]
[null,"\n-","Unternehmen sind kein KMU, wenn folgende Bedingung vorliegt:\nMindestens 25% des Kapitals oder mindestens 25 % der Stimmrechte des Unternehmens werden direkt oder indirekt von einer oder mehreren öffentlichen Stellen oder Körperschaften des öffentlichen Rechts einzeln oder gemeinsam kontrolliert. Es gibt Ausnahmen für bestimmte Anteilseigner zwischen 25 % und 50 % Beteiligung (z.B. staatliche Beteiligungsgesellschaften)."]
[]
["4.","Angaben zur Mitarbeiterzahl und zu den finanziellen Schwellenwerten"]
[]
[null,"Für Kleinstunternehmen sowie kleine und mittlere Unternehmen (KMU) gelten folgende Schwellenwerte:\nKMU beschäftigen weniger als 250 Personen und erzielen entweder einen Jahresumsatz von höchstens 50 Mio. EUR oder die Jahresbilanzsumme beläuft sich auf höchstens 43 Mio. EUR. - Die Angaben beziehen sich auf den letzten durchgeführten Jahresabschluss.\n\nBei der Berechnung der Mitarbeiterzahl (Vollzeitäquivalente ohne Auszubildende) und der finanziellen Schwellenwerte sind alle Partnerunternehmen und verbundenen Unternehmen zu berücksichtigen. Falls Ihr Unternehmen noch keinen Jahresabschluss durchführen konnte (z.B. Neugründung), schätzen Sie die finanziellen Größen bitte gewissenhaft. Die Bilanzsumme kann freigelassen werden, wenn das Unternehmen nicht bilanzpflichtig ist."]
[]
[null,"Mitarbeiterzahl",null,null,"Jahresumsatz (in TSD Euro)",null,"Bilanzsumme (in TSD Euro)"]
[]
[]
[null,"Ich versichere die Richtigkeit und Vollständigkeit der in dieser Selbsterklärung gemachten Angaben. "]
[]
[]
[null,"Ort und Datum",null,null,null,"Unterschrift des Vertretungsberechtigten"]

{"sheet":"Anlage Wachstumsorientierung ","index":2,"n_rows":33,"n_cols":11,"rows_kept":33,"cut":false,"hidden":false,"merged":[[1,1,1,7],[10,4,10,6],[13,1,13,7],[11,1,11,7],[2,1,2,7],[6,1,6,7],[8,1,8,6],[10,1,10,3],[9,1,9,7],[4,1,4,2],[4,3,4,8],[17,4,17,7],[24,3,24,7],[31,1,31,3],[16,2,16,5],[27,3,27,5],[18,3,18,7],[19,3,19,7],[26,1,26,2],[26,3,26,7],[31,5,31,8],[21,2,21,7],[23,3,23,7],[22,4,22,7]]}
[]
[]
[null,"Anlage zum thematischen Coachingschwerpunkt \"Wachstumsorientierung frauengeführter Unternehmen\""]
[]
[null,"Name des Unternehmens",null,{"$f":"IF(Antrag!D19=\"\",\"\",Antrag!D19)","v":""}]
[]
[null,"Bitte zutreffendes ankreuzen bzw. ausfüllen."]
[]
["1.","Wie viele Beschäftigte hat Ihr Unternehmen?\n"]
[null,"Die Angabe überträgt sich automatisch aus der ausgefüllten Anlage \"Selbsterklärung KMU\"."]
[null,"Beschäftigtenzahl",null,null,{"$f":"IF('Anlage Selbsterklärung KMU'!B33=\"\",\"\",'Anlage Selbsterklärung KMU'!B33)","v":""},null,null,null,null,null,{"$f":"IF(E11<10,2,0)","v":0}]
[null,{"$f":"IF(E11<10,\"\",\"Ihr Unternehmen hat nicht weniger als zehn Beschäftigte. Ihr Unternehmen ist für ein Coaching im Themenbereich Wachstumsorientierung frauengeführter Unternehmen nicht antragsberechtigt.\")","v":"Ihr Unternehmen hat nicht weniger als zehn Beschäftigte. Ihr Unternehmen ist für ein Coaching im Themenbereich Wachstumsorientierung frauengeführter Unternehmen nicht antragsberechtigt."}]
[]
["2.","Handelt es sich bei Ihrem Unternehmen um ein frauengeführtes Unternehmen?"]
[]
[]
[null,null,"Sind Sie finanziell am antragstellenden Unternehmen beteiligt?"]
[null,null,null,"nein.","Wir benötigen keine weiteren Angaben.",null,null,null,null,null,0]
[null,null,null,"ja,               - ich bin alleinige Gesellschafterin oder \n                   - ich bin alleinige Inhaberin.",null,null,null,null,null,null,{"$f":"IF(K18>1,2,0)","v":0}]
[null,null,null,"ja,               - ich bin eine von mehreren Gesellschafter/innen oder\n                   - ich bin eine von mehreren Inhaber/innen oder\n                   - ich halte Genossenschaftsanteile.",null,null,null,null,null,null,{"$f":"IF(AND(#REF!=2,K19=2),2,0)","v":{"$error":"#REF!"}}]
[]
[null,null,"Sind Sie an der Leitung des antragstellenden Unternehmens aktiv beteiligt?"]
[null,null,null,"nein.","Wir benötigen keine weiteren Angaben.",null,null,null,null,null,0]
[null,null,null,"ja,               - ich bin alleinige Geschäftsführerin oder \n                   - ich leite das Unternehmen alleine.",null,null,null,null,null,null,{"$f":"IF(K23>1,2,0)","v":0}]
[null,null,null,"ja,               - ich bin eine von mehreren Geschäftsführer/innen oder\n                   - das Unternehmen wird von mir zusammen mit weiteren   \n                      Personen geleitet oder\n                   - ich gehöre zum Vorstand der Genossenschaft und leite das \n                     Unternehmen aktiv mit.",null,null,null,null,null,null,{"$f":"IF(AND(K20=2,K24=2),2,0)","v":{"$error":"#REF!"}}]
[]
[null,"Mein / unsere Name/n: "]
[]
[]
[null,"Die Angaben sind richtig und vollständig. "]
[]
[]
[null,"Ort und Datum",null,null,null,"Unterschrift/en"]

{"sheet":"Anlage Kurzbeschreibung","index":3,"n_rows":16,"n_cols":4,"rows_kept":16,"cut":false,"hidden":false,"merged":[[15,1,15,5],[53,1,61,5],[17,1,25,5],[26,1,34,5],[35,1,43,5],[44,1,52,5],[13,2,13,5],[1,1,1,5],[9,2,9,5],[7,1,7,5],[5,1,5,2],[5,3,5,5],[10,2,10,5]]}
[]
[null,"Kurzbeschreibung des geplanten Coachings"]
[]
[]
[]
[null,"Name des Unternehmens",null,{"$f":"IF(Antrag!D19=\"\",\"\",Antrag!D19)","v":""}]
[]
[null,"Bitte kreuzen Sie an, in welchem Themenfeld Sie ein Coaching beantragen:"]
[]
[null,null,"Innovationsvorhaben und Umstrukturierungen / Veränderungsprozesse"]
[null,null,"Klimafreundliche Geschäftstätigkeit"]
[null,null,"Unternehmensübergaben"]
[null,null,"Gelingende Ausbildung"]
[null,null,"Wachstumsorientierung frauengeführter Unternehmen"]
[]
[null,"Bitte begründen Sie die Erforderlichkeit des Coachings unternehmensspezifisch und nachvollziehbar! \nWir behalten uns vor, nicht ausreichend begründete Anträge abzulehnen."]

{"sheet":"Anlage De-minimis-Erklärung","index":4,"n_rows":65,"n_cols":12,"rows_kept":65,"cut":false,"hidden":false,"merged":[[59,1,59,11],[7,4,7,11],[1,1,1,11],[2,1,2,11],[3,2,3,11],[4,1,4,11],[37,1,37,11],[15,1,15,11],[17,1,17,11],[19,2,19,11],[21,2,21,11],[23,2,23,11],[25,2,25,11],[27,1,27,11],[29,1,29,11],[33,1,33,11],[47,2,47,11],[49,2,50,2],[49,3,50,4],[49,5,50,5],[49,6,49,9],[49,10,50,10],[8,4,8,11],[9,4,9,11],[63,1,63,3],[63,5,63,11],[56,3,56,4],[60,1,60,11],[49,11,50,11],[51,3,51,4],[52,3,52,4],[53,3,53,4],[54,3,54,4],[55,3,55,4],[39,2,39,11],[41,2,41,11],[43,2,43,11],[45,2,45,11]]}
[]
[null,"De-minimis-Erklärung des Antragstellers"]
[null," im Sinne der EU-Verordnungen für De-minimis Beihilfen"]
[null,null,"(zutreffendes bitte ankreuzen bzw. ausfüllen)"]
[null,"Die aktuelle allgemeine De-minimis-Verordnung (EU) Nr. 1407/2013 finden Sie unter www.esf-bw.de."]
[]
["1.","Angaben zum antragstellenden Unternehmen"]
[null,"Name des Unternehmens",null,null,{"$f":"IF(Antrag!D19=\"\",\"\",Antrag!D19)","v":""}]
[null,"Straße, Hausnummer",null,null,{"$f":"IF(Antrag!D21=\"\",\"\",Antrag!D21)","v":""}]
[null,"PLZ, Ort",null,null,{"$f":"IF(Antrag!D22=\"\",\"\",Antrag!D22)","v":""}]
[]
[null,"Ist das Unternehmen im Bereich des gewerblichen Straßengüterverkehrs tätig?",null,null,null,null,null,null,null,null,"ja","nein"]
[]
["2.","Definitionen und Erläuterungen"]
[]
[null,"In dieser Erklärung sind alle De-minimis-Beihilfen anzugeben, die Ihr Unternehmen bzw. Unternehmensverbund als „ein einziges Unternehmen“ im laufenden sowie in den vorangegangenen zwei Kalenderjahren erhalten hat."]
[]
[null,"Für die Zwecke der De-minimis-Verordnungen sind die Unternehmen als ein einziges Unternehmen zu betrachten, die zueinander in mindestens einer der folgenden Beziehungen stehen: "]
[]
[null,"-","Ein Unternehmen hält die Mehrheit der Stimmrechte der Anteilseigner oder Gesellschafter eines anderen Unternehmens,"]
[null,"-"]
[null,"-","ein Unternehmen ist berechtigt, die Mehrheit der Mitglieder des Verwaltungs-, Leitungs- oder Aufsichts-gremiums eines anderen Unternehmens zu bestellen oder abzuberufen, "]
[null,"-"]
[null,"-","ein Unternehmen ist gemäß einem mit einem anderen Unternehmen geschlossenen Vertrag oder aufgrund einer Klausel in dessen Satzung berechtigt, einen beherrschenden Einfluss auf dieses Unternehmen auszuüben,"]
[null,"-"]
[null,"-","ein Unternehmen, das Anteilseigner oder Gesellschafter eines anderen Unternehmens ist, übt gemäß einer mit anderen Anteilseignern oder Gesellschaftern dieses anderen Unternehmens getroffenen Vereinbarung die alleinige Kontrolle über die Mehrheit der Stimmrechte von dessen Anteilseignern oder Gesellschaftern aus. "]
[]
[null,"Auch Unternehmen, die über ein oder mehrere andere Unternehmen zueinander in einer der vorgenannten Beziehungen stehen, werden als ein einziges Unternehmen betrachtet. "]
[]
[null,"Im Falle einer Fusion oder Übernahme müssen alle De-minimis-Beihilfen, die den beteiligten Unternehmen im laufenden Kalenderjahr sowie in den vorangegangenen zwei Kalenderjahren gewährt wurden, angegeben werden. Im Zuge von Unternehmensaufspaltungen werden die De-minimis-Beihilfen dem Unternehmen zugerechnet, welches die Geschäftsbereiche übernimmt, für die die De-minimis-Beihilfen verwendet wurden. Ist dies nicht möglich, muss eine anteilige Aufteilung auf der Grundlage des Buchwerts des Eigenkapitals zum Zeitpunkt der tatsächlichen Aufspaltung erfolgen."]
[]
["3.","Erklärung"]
[]
[null,"Hiermit bestätige ich, dass ich als ein einziges Unternehmen gemäß Punkt 2 im laufenden Kalenderjahr sowie in den vorangegangenen zwei Kalenderjahren"]
[]
[null,"keine",null,null,"folgende"]
[]
[null,"Beihilfen im Sinne folgender Verordnungen erhalten bzw. beantragt habe: "]
[]
[null,"-","Allgemeine-De-minimis-Beihilfen\nim Sinne der Verordnung (EU) Nr. 1407/2013 der Kommission vom 18. Dezember 2013 über die Anwendung der Artikel 107 und 108 des Vertrags über die Arbeitsweise der Europäischen Union auf De-minimis-Beihilfen bzw. der Verordnung (EG) Nr. 1998/2006 der Kommission vom 15. Dezember 2006 über die Anwendung der Artikel 87 und 88 EG-Vertrag auf „De-minimis“-Beihilfen\n(ABl. L 352/1 vom 24.12.2013 bzw. ABl. L 379/5 vom 28.12.2006),"]
[null,"-"]
[null,"-","Agrar-De-minimis-Beihilfen\nim Sinne der Verordnung (EU) Nr. 1408/2013 der Kommission vom 18. Dezember 2013 über die Anwendung der Artikel 107 und 108 des Vertrags über die Arbeitsweise der Europäischen Union auf De-minimis-Beihilfen im Agrarsektor bzw. der Verordnung (EG) Nr. 1535/2007 der Kommission vom 20. Dezember 2007 über die Anwendung der Artikel 87 und 88 EG-Vertrag auf De-minimis-Beihilfen im Agrarerzeugnissektor\n(ABl. L 352/9 vom 24.12.2013 bzw. ABl. L 337/35 vom 21.12.2007),"]
[]
[null,"-","Fisch-De-minimis-Beihilfen\nim Sinne der Verordnung (EG) Nr. 875/2007 der Kommission vom 24. Juli 2007 über die Anwendung der Artikel 87 und 88 EG-Vertrag auf De-minimis-Beihilfen im Fischereisektor\n(ABl. L 193/6 vom 25.07.2007) und"]
[null,"-"]
[null,"-","DAWI-De-minimis-Beihilfen\nim Sinne der Verordnung (EU) Nr. 360/2012 der Kommission vom 25. April 2012 über die Anwendung der Artikel 107 und 108 des Vertrags über die Arbeitsweise der Europäischen Union auf De-minimis-Beihilfen an Unternehmen, die Dienstleistungen von allgemeinem wirtschaftlichen Interesse erbringen\n(ABl. L 114/8 vom 26.04.2012)."]
[]
[null,null,"Bitte tragen Sie auch beantragte aber noch nicht bewilligte bzw. nicht zugesagte Beihilfen in die folgende Tabelle ein."]
[]
[null,null,"Datum der Bewilligung / Zusage","Beihilfegeber / Zuwendungsgeber",null,"Aktenzeichen / Kontonummer","De-minimis-Beihilfen*",null,null,null,"Form der Beihilfe\n(z.B. Zuschuss, Darlehen, Bürgschaft)","Beihilfewert in Euro"]
[null,null,null,null,null,null,"Allge-meine","Agrar","Fisch","DAWI"]
[]
[]
[]
[]
[]
[]
[null,null,"*Bitte kreuzen Sie an, um welche De-minimis-Beihilfe es sich handelt"]
[]
[null,"Hiermit bestätige/n ich/wir, dass mir/uns bekannt ist, dass die vorstehend gemachten Angaben subventionserheblich im Sinne des § 264 des Strafgesetzbuches (StGB) in Verbindung mit § 3 Subventionsgesetz sind. Unrichtige oder unvollständige Angaben zu subventionserheblichen Tatsachen können nach § 264 StGB strafbar sein, sofern die Angaben für den Antragsteller oder einen anderen vorteilhaft sind."]
[null,"Ich/Wir verpflichte/n mich/uns, Ihnen unverzüglich Änderungen der vorgenannten Angaben zu übermitteln, sobald mir/uns diese bekannt werden."]
[null,"Ich/Wir betätige/n, dass die oben gemachten Angaben vollständig und richtig sind."]
[]
[]
[null,"Ort und Datum",null,null,null,"Rechtsverbindliche Unterschrift des Antragstellers"]

{"sheet":"Anlage Unt.Stammblatt","index":5,"n_rows":27,"n_cols":7,"rows_kept":27,"cut":false,"hidden":false,"merged":[[11,4,11,7],[10,4,10,7],[2,1,2,7],[7,1,7,7],[8,1,8,3],[8,4,8,7],[9,1,9,3],[9,4,9,7],[4,1,4,7],[26,1,26,7],[22,1,22,3],[24,1,24,3],[10,1,10,3],[22,4,22,5],[24,4,24,5],[16,1,16,7],[18,1,18,3],[18,4,18,5],[18,6,18,7],[19,1,19,3],[19,4,19,5],[19,6,19,7],[12,1,12,3],[12,4,12,7],[11,1,11,3]]}
[]
[]
[null,"Angaben für das Unternehmenstammblatt"]
[]
[null,"Die Angaben übertragen sich automatisch."]
[]
[null,"Kontaktdaten zum Unternehmen"]
[]
[null,"Name des Unternehmens",null,null,{"$f":"IF(Antrag!D19=\"\",\"\",Antrag!D19)","v":""}]
[null,"Straße, Hausnummer",null,null,{"$f":"IF(Antrag!D21=\"\",\"\",Antrag!D21)","v":""}]
[null,"PLZ, Ort",null,null,{"$f":"IF(Antrag!D22=\"\",\"\",Antrag!D22)","v":""}]
[null,"Telefonnummer Ansprechpartner",null,null,{"$f":"IF(Antrag!D41=\"\",\"\",Antrag!D41)","v":""}]
[null,"E-Mail Ansprechpartner",null,null,{"$f":"IF(Antrag!D43=\"\",\"\",Antrag!D43)","v":""}]
[]
[null,"Angaben zur Mitarbeiterzahl und zu den finanziellen Schwellenwerten"]
[]
[null,"Für Kleinstunternehmen sowie kleine und mittlere Unternehmen (KMU) gelten folgende Schwellenwerte:\nKMU beschäftigen weniger als 250 Personen und erzielen entweder einen Jahresumsatz von höchstens 50 Mio. EUR oder die Jahresbilanzsumme beläuft sich auf höchstens 43 Mio. EUR. - Die Angaben beziehen sich auf den letzten durchgeführten Jahresabschluss."]
[]
[null,"Mitarbeiterzahl",null,null,"Jahresumsatz (in TSD Euro)",null,"Bilanzsumme (in TSD Euro)"]
[null,{"$f":"IF('Anlage Selbsterklärung KMU'!B33:D33=\"\",\"\",'Anlage Selbsterklärung KMU'!B33:D33)","v":""},null,null,{"$f":"IF('Anlage Selbsterklärung KMU'!E33:F33=\"\",\"\",'Anlage Selbsterklärung KMU'!E33:F33)","v":""},null,{"$f":"IF('Anlage Selbsterklärung KMU'!G33:H33=\"\",\"\",'Anlage Selbsterklärung KMU'!G33:H33)","v":""}]
[]
[]
[null,"Eintrittsdatum (voraussichtlich):",null,null,{"$f":"IF(Antrag!E144=\"\",\"\",Antrag!E144)","v":""}]
[]
[null,"Austrittsdatum (voraussichtlich):",null,null,{"$f":"IF(Antrag!H144=\"\",\"\",Antrag!H144)","v":""}]
[]
[null,"Anmerkungen für die L-Bank:\nDas Eintritts- und Austrittsdatum bitte ggf. entsprechend den tatsächlichen Bewilligungsdaten ändern."]

{"sheet":"Anlage Anhang I AEUV","index":6,"n_rows":0,"n_cols":0,"rows_kept":0,"cut":false,"hidden":false,"merged":[]}

{"sheet":"Informationen Datenerhebung","index":7,"n_rows":0,"n_cols":0,"rows_kept":0,"cut":false,"hidden":false,"merged":[]}